Cogmind - Beta 13 @@@ ROGUE MODE // 2024.04.06 @ 08:47:25 Player: Luca Result: Destroyed by Y-45 Defender with Heavy Assault Rifle Performance ------------- Evolutions (1) 500 Regions Visited (3) 600 Robots Destroyed (53) 265 Value Destroyed (1242) 1242 Prototype IDs (1) 20 Alien Tech Used (0) 0 Bonus (47) 47 TOTAL SCORE: 2674 Bonus ------- High Alert Combat Kills 47 Cogmind --------- Core Integrity 0/400 Matter 290/300 Energy 275/275 System Corruption 0% Temperature Cool (9) Movement Walking (90) Location -9/Storage Parts ------- > --- POWER (1) -------- Deuterium Engine > --- PROPULSION (2) --- VSS Leg VSS Leg > --- UTILITY (4) ------ Medium Storage Unit Visual Processing Unit > --- WEAPON (2) ------- Beam Rifle Mace > --- INVENTORY (10) --- Heavy Ion Engine Heavy Ion Engine VSS Leg VSS Leg Transport Network Coupler Autogun Improved Assault Rifle Improved Assault Rifle Grenade Launcher Peak State ------------ > --- POWER ------------ Deuterium Engine > --- PROPULSION ------- VSS Leg VSS Leg > --- UTILITY ---------- Small Storage Unit Visual Processing Unit Sensor Array Light Armor Plating > --- WEAPON ----------- Improved Medium Laser Autogun > --- INVENTORY -------- Deuterium Engine VSS Leg VSS Leg Medium Storage Unit Compact Battery Transport Network Coupler Grenade Launcher Mace [Rating: 20] Favorites ----------- Power Improved Ion Engine Engine Improved Ion Engine Propulsion Improved Aluminum Leg Leg Improved Aluminum Leg Utility Sensor Array Device Sensor Array Storage Small Storage Unit Processor Visual Processing Unit Protection Light Armor Plating Weapon Light Assault Rifle Energy Gun Improved Medium Laser Ballistic Gun Light Assault Rifle Launcher Grenade Launcher Impact Weapon Mace Build | -11 -10 -9 -9 ------- Run | Yrd Mat Mat Sto Slots Evolved 2 | . . 2 . Power . | . . . . Propulsion . | . . . . Utility 2 | . . 2 . Weapon . | . . . . Parts Attached 87 | 6 14 62 5 Power 10 | 1 3 5 1 Engine 10 | 1 3 5 1 Core . | . . . . Reactor . | . . . . Propulsion 22 | 2 5 13 2 Treads . | . . . . Leg 22 | 2 5 13 2 Wheel . | . . . . Hover . | . . . . Flight . | . . . . Utility 13 | 1 2 10 . Device 3 | . 2 1 . Storage 3 | 1 . 2 . Processor 4 | . . 4 . Hackware . | . . . . Protection 3 | . . 3 . Artifact . | . . . . Weapon 42 | 2 4 34 2 Energy Gun 11 | 1 2 7 1 Energy Cannon . | . . . . Ballistic Gun 17 | 1 2 14 . Ballistic Cannon . | . . . . Launcher 6 | . . 6 . Special Weapon . | . . . . Impact Weapon 8 | . . 7 1 Slashing Weapon . | . . . . Piercing Weapon . | . . . . Special Melee Weapon . | . . . . Unidentified Prototypes . | . . . . Parts Lost 10 | . . 7 3 Power 1 | . . . 1 Propulsion . | . . . . Utility 7 | . . 5 2 Weapon 2 | . . 2 . Highest Loss Streak 2 | . . 2 2 To Critical Strikes . | . . . . Average Slot Usage (%) 95 | . 99 93 94 Engine 12 | . 14 11 10 Leg 24 | . 28 22 22 Device 10 | . 13 8 8 Storage 10 | . 14 9 11 Processor 7 | . . 12 11 Protection 5 | . . 8 8 Energy Gun 9 | . 11 8 5 Ballistic Gun 11 | . 16 8 7 Impact Weapon 2 | . . 3 8 Naked Turns . | . . . . Heaviest Build 29 | 14 24 28 29 Greatest Support 30 | 20 26 30 24 Greatest Overweight (x) 4 | 4 . 1 1 Average Overweight (x) . | . . . . Largest Inventory Capacity 10 | 8 8 10 10 Average Capacity 8 | 7 8 7 10 Most Carried 10 | 2 8 10 10 Average Carried 7 | 1 7 7 9 Final Capacity 10 | 8 8 10 10 Final Carried 10 | 2 8 10 9 Class Distribution -------------------- 84% | Mutant 15% | Scavenger-Mutant Dominant Class ---------------- Mutant | -10/Materials Mutant | -9/Materials Mutant | -9/Storage Resources | -11 -10 -9 -9 ----------- Run | Yrd Mat Mat Sto Matter Collected 1425 | 212 264 897 52 Remotely . | . . . . Salvage Created 1549 | . 391 1030 128 Parts 95 | . 27 64 4 Haulers Intercepted 4 | . 1 3 . Recyclers Shooed . | . . . . Parts Field Recycled 12 | . 12 . . Retrieved Matter 76 | . 76 . . Parts Self-Destructed . | . . . . Prevented . | . . . . Kills | -11 -10 -9 -9 ------- Run | Yrd Mat Mat Sto Combat Hostiles Destroyed 39 | . 9 27 3 Melee 2 | . . 1 1 Guns 26 | . 9 17 . AOE 5 | . . 5 . Classes Destroyed 7 | . 5 2 . Worker 1 | . . 1 . Hauler 4 | . 1 3 . Operator 3 | . 1 1 1 Watcher 6 | . 3 3 . Swarmer 16 | . 6 10 . Grunt 15 | . 3 9 3 Sentry 8 | . . 8 . Best Kill Streak 8 | . 3 8 2 Combat Bots Only 6 | . 3 6 2 Max Kills in Single Turn 2 | . 2 2 1 Gunslinging 1 | . 1 . . Exploded 2 | . . 2 . Melee 1 | . . 1 1 Uniques/NPCs Destroyed . | . . . . Combat | -11 -10 -9 -9 -------- Run | Yrd Mat Mat Sto Hostile Shots Fired 309 | . 61 212 36 Missed 76 | . 10 59 7 Damage Taken 2693 | . 502 1812 379 Core 512 | . 108 341 63 Absorbed by Shields . | . . . . Regen/Repaired (Parts) 237 | . 99 138 . Core Remaining (%) 78 | 100 56 . . Volleys Fired 123 | . 43 77 3 Largest 2 | . 2 2 2 Hottest 86 | . 70 86 79 Shots Fired 222 | . 86 130 6 Gun 204 | . 86 112 6 Cannon . | . . . . Launcher 18 | . . 18 . Special . | . . . . Kinetic 124 | . 52 69 3 Thermal 61 | . 28 30 3 Explosive 18 | . . 18 . Electromagnetic 19 | . 6 13 . Robot Hit Streak 18 | . 10 18 2 Robot Miss Streak 8 | . 8 3 3 Penetration Max . | . . . . Secondary Targets 4 | . 2 2 . Max Gunslinging Chain 1 | . 1 1 . Shots Hit Robots 171 | . 44 107 20 Core Hits 72 | . 21 49 2 Critical Kills 1 | . . 1 . Critical Parts Destroyed 5 | . 1 2 2 Critical Strikes 9 | . 3 4 2 Burn 1 | . 1 . . Destroy 2 | . 1 1 . Corrupt 1 | . 1 . . Smash 5 | . . 3 2 Melee Attacks 40 | . . 19 21 Impact 40 | . . 19 21 Slashing . | . . . . Piercing . | . . . . Sneak Attacks 3 | . . 3 . Combat Hostiles 1 | . . 1 . Follow-up Attacks . | . . . . Damage Inflicted 3213 | . 543 2106 564 Guns 1666 | . 543 1075 48 Cannons . | . . . . Explosions 485 | . . 485 . Melee 1062 | . . 546 516 Ramming . | . . . . Kinetic 902 | . 291 578 33 Thermal 484 | . 162 307 15 Explosive 485 | . . 485 . Electromagnetic 280 | . 90 190 . Impact 1062 | . . 546 516 Slashing . | . . . . Piercing . | . . . . Highest Corruption . | . . . . Average Corruption . | . . . . Corruption Purged . | . . . . Corruption Blocked . | . . . . Overload Shots . | . . . . Overflow Damage 192 | . . 131 61 Projectiles . | . . . . Explosions 9 | . . 9 . Melee 183 | . . 122 61 Knockbacks 5 | . . 2 3 Impact 5 | . . 2 3 Kinetic . | . . . . Secondary . | . . . . Self-Inflicted Damage 50 | . . 50 . Shots 2 | . . 2 . Rammed . | . . . . Targets Rammed 1 | . 1 . . Kicked 1 | . 1 . . Crushed . | . . . . Highest Temperature 240 | . 240 140 101 Average Temperature 47 | . 55 39 57 Received Heat Transfer 843 | . 138 540 165 Siege Activations . | . . . . Robots Corrupted 1 | . . 1 . Combat Hostiles . | . . . . Parts Fried 16 | . 1 15 . Impact Corruptions 12 | . . 9 3 Robots Melted . | . . . . Combat Hostiles . | . . . . Parts Melted . | . . . . Heat Transferred 1258 | . 555 666 37 Parts Sabotaged . | . . . . Parts Stolen . | . . . . Parts Stripped . | . . . . Power Chain Reactions . | . . . . Alert | -11 -10 -9 -9 ------- Run | Yrd Mat Mat Sto Peak Influence 589 | . 214 589 317 Initial 247 | . . 18 247 Average 230 | . 40 352 244 Maximum Alert Level 2 | . 1 2 1 Low Security (%) 41 | 100 96 9 12 Level 1 42 | . 3 60 87 Level 2 16 | . . 29 . Level 3 . | . . . . Level 4 . | . . . . Level 5 . | . . . . High Security . | . . . . Max Security . | . . . . Squads Dispatched 8 | . 3 4 1 Investigation 4 | . 2 2 . Extermination . | . . . . Reinforcement 4 | . 1 2 1 Assault . | . . . . Garrison . | . . . . Intercept . | . . . . Searches Triggered . | . . . . Construction Impeded . | . . . . Haulers Reinforced . | . . . . Active Scanning Responses . | . . . . Cargo Convoy Interrupts . | . . . . Stealth | -11 -10 -9 -9 --------- Run | Yrd Mat Mat Sto Distress Signals 3 | . . 3 . Communications Jammed . | . . . . Distress Signals . | . . . . Times Spotted 66 | . 18 42 6 Peak Tracking Total 9 | . 3 9 5 Tactical Retreats 12 | . 2 10 . Traps | -11 -10 -9 -9 ------- Run | Yrd Mat Mat Sto Traps Triggered 1 | . 1 . . Indirectly . | . . . . Trap Hack Attempts . | . . . . Triggered . | . . . . Disarmed . | . . . . Reprogrammed . | . . . . Reused . | . . . . Traps Extracted . | . . . . Installed . | . . . . Triggered 1 | . . 1 . Machines | -11 -10 -9 -9 ---------- Run | Yrd Mat Mat Sto Machines Disabled 2 | . . 2 . Max in Single Turn 1 | . . 1 . Machines Repaired . | . . . . Machines Dismantled . | . . . . Machines Sabotaged . | . . . . Overloaded Fab Kills . | . . . . Hacking | -11 -10 -9 -9 --------- Run | Yrd Mat Mat Sto Machines Accessed 19 | . 7 12 . Terminals 12 | . 5 7 . Fabricators . | . . . . Repair Stations 3 | . 1 2 . Recycling Units 2 | . 1 1 . Scanalyzers 2 | . . 2 . Garrison Access . | . . . . Total Hacks 53 | . 21 32 . Successful 25 | . 10 15 . Failed 28 | . 11 17 . Catastrophic 2 | . 1 1 . Database Lockouts . | . . . . Manual . | . . . . Terminals 25 | . 11 14 . Fabricators . | . . . . Repair Stations 16 | . 8 8 . Recycling Units 5 | . 2 3 . Scanalyzers 7 | . . 7 . Garrison Access . | . . . . Terminal Hacks 10 | . 5 5 . Emergency Access Points 1 | . 1 . . Alert Level 1 | . 1 . . Locate Traps 4 | . 1 3 . Recall Reinforcements 1 | . . 1 . Hauler Manifests 1 | . 1 . . Zone Layout 2 | . 1 1 . Fabricator Hacks . | . . . . Repair Station Hacks 10 | . 5 5 . Scan Component 6 | . 3 3 . Repair 4 | . 2 2 . Recycling Unit Hacks 1 | . . 1 . Retrieve Components 1 | . . 1 . Scanalyzer 4 | . . 4 . Insert Component 2 | . . 2 . Analyze 2 | . . 2 . Garrison Access Hacks . | . . . . Unauthorized Hacks . | . . . . Terminals . | . . . . Fabricators . | . . . . Repair Stations . | . . . . Recycling Units . | . . . . Scanalyzers . | . . . . Garrison Access . | . . . . Data Cores Recovered 1 | . . 1 . Used . | . . . . Hacking Detections 16 | . 6 10 . Full Trace Events 8 | . 2 6 . Feedback Events . | . . . . Feedback Blocked . | . . . . Robot Schematics Acquired . | . . . . Robots Built . | . . . . Authchips . | . . . . Time . | . . . . Total Robot Build Rating . | . . . . Part Schematics Acquired 1 | . . 1 . Parts Built . | . . . . Authchips . | . . . . Time . | . . . . Total Part Build Rating . | . . . . Parts Repaired 4 | . 2 2 . Time 128 | . 64 64 . Parts Recycled . | . . . . Recycled Matter . | . . . . Retrieved Matter . | . . . . Retrieved Components 10 | . . 10 . Parts Scanalyzed 1 | . . 1 . Part Schematics Acquired 1 | . . 1 . Parts Damaged . | . . . . Bothacking | -11 -10 -9 -9 ------------ Run | Yrd Mat Mat Sto Used RIF Installer . | . . . . Robots Hacked . | . . . . Non-combat . | . . . . Combat . | . . . . Robot Hacks Applied . | . . . . Relay Couplers Released . | . . . . Fabnet Peak Effective % . | . . . . Robots Rewired . | . . . . Allies Hacked . | . . . . Hacks Repelled . | . . . . Allies | -11 -10 -9 -9 -------- Run | Yrd Mat Mat Sto Total Allies . | . . . . Largest Group . | . . . . Highest-Rated Group . | . . . . Highest-Rated Ally . | . . . . Total Orders . | . . . . Ally Attacks . | . . . . Total Damage . | . . . . Kills . | . . . . Allies Corrupted . | . . . . Allies Melted . | . . . . Intel | -11 -10 -9 -9 ------- Run | Yrd Mat Mat Sto Robot Analysis Total . | . . . . Derelict Logs Recovered . | . . . . Drone Launches . | . . . . Drone Recoveries . | . . . . Exploration | -11 -10 -9 -9 ------------- Run | Yrd Mat Mat Sto Turns Passed 5054 | 56 1759 2782 457 Spaces Moved 2930 | 36 1142 1607 145 Core 10 | 10 . . . Treads . | . . . . Legs 2920 | 26 1142 1607 145 Wheels . | . . . . Hover . | . . . . Flight . | . . . . Fastest Speed 50 | 50 120 90 90 Average Speed 118 | 126 120 114 157 Slowest Speed 250 | 250 120 180 180 Overloaded Moves . | . . . . Propulsion Burnouts . | . . . . Robots Hopped . | . . . . Cave-ins Triggered . | . . . . Exploration Rate (%) 51 | 3 93 87 21 Regions Visited 3 Branch Regions 1 Pre-discovered Areas . | . . . . Known Exits Taken . | . . . . Unknown Exits Taken 3 | 1 1 1 . Scrap Searched . | . . . . Spaces Dug . | . . . . Terrain Destroyed 114 | . . 114 . Melee . | . . . . Projectile . | . . . . AOE 114 | . . 114 . Terrain Rammed . | . . . . Walls Destroyed . | . . . . Machines Disabled . | . . . . Actions | -11 -10 -9 -9 --------- Run | Yrd Mat Mat Sto Total 4212 | 43 1449 2390 330 Wait 938 | . 216 566 156 Move 2927 | 35 1141 1606 145 Hop . | . . . . Pick Up 46 | 2 18 26 . Fast Attach 23 | 6 3 14 . Attach 9 | . 1 7 1 Detach 2 | . . 2 . Swap 55 | . 10 41 4 Drop 48 | . 16 32 . Fire 123 | . 43 77 3 Melee 40 | . . 19 21 Ram . | . . . . Kick 1 | . 1 . . Crush . | . . . . Escape Stasis . | . . . . Rewire . | . . . . Trap . | . . . . Miscellaneous . | . . . . Route ------- -11/Scrapyard -10/Materials (discovered 6 exits: *Mat x3 / [*Min x2] / [*Sub]) -9/Materials (discovered 6 exits: [*Mat x3] / [*Min] / *Sto x2) -9/Storage History --------- Turn | Location | Event 23 | -11/Scrapyard | Discovered new exit (range 15) 57 | -11/Scrapyard | Entered Materials 310 | -10/Materials | Build established: Mutant 343 | -10/Materials | Discovered new exit (range 3) 493 | -10/Materials | Discovered new exit (range 5) 640 | -10/Materials | Discovered new exit (range 9) 1074 | -10/Materials | Discovered new exit (range 14) 1239 | -10/Materials | Repaired Imp. Aluminum Leg 1272 | -10/Materials | Repaired Imp. Aluminum Leg 1315 | -10/Materials | Discovered new exit (range 5) 1429 | -10/Materials | Discovered new exit (range 10) 1816 | -10/Materials | Entered another Materials area 1816 | -9/Materials | Evolved 2 slots: Utility x2 1942 | -9/Materials | Discovered new exit (range 7) 2205 | -9/Materials | Discovered new exit (range 5) 2286 | -9/Materials | Core integrity fell below 50% 2697 | -9/Materials | Repaired Imp. Aluminum Leg 2731 | -9/Materials | Repaired Imp. Aluminum Leg 2754 | -9/Materials | Build established: Scavenger-Mutant 2975 | -9/Materials | Discovered new exit (range 6) 3305 | -9/Materials | Discovered new exit (range 4) 3361 | -9/Materials | Discovered new exit (range 18) 3386 | -9/Materials | Build established: Mutant 4084 | -9/Materials | Core integrity fell below 20% 4406 | -9/Materials | Discovered new exit (range 5) 4598 | -9/Materials | Entered Storage 5055 | -9/Storage | Destroyed by Y-45 Defender with Heavy Assault Rifle Last Messages --------------- effect. 04937_ G-47 Trooper system terminally corrupted. 04939_ Acquired 15 matter. 04946_ Lgt. Armor Plating destroyed. 04948_ Sensor Array destroyed. 04958_ Destroyed Heat Sink. 04958_ G-34 Mercenary system corrupted by crushing effect. 04958_ G-34 Mercenary knocked back. 04984_ Deuterium Engine destroyed. 04985_ K-01 Serf collects debris. 04986_ G-34 Mercenary IFF system glitched. 04986_ K-01 Serf destroyed. 04987_ G-34 Mercenary heat damages Sml. Laser. 04987_ G-34 Mercenary destroyed. 04994_ Acquired 10 matter. 04996_ Acquired 8 matter. 04997_ R-06 Scavenger collects Aluminum Leg. 05001_ Acquired 2 matter. 05002_ R-06 Scavenger collects Wheel. Map ----- +----------------------------------------------------+ | | | ????????????????????????????????????? | | ????????????????????????????????????? | | ????????????????????????????????????? | | ????????????????????????????????????? | | ????????????????????????????????????? | | ????????????????????????????????????? | | ????????????????????????????????????? | | ????????????????????????????????????? | | ????????????????????????????????????? | | ????????????????????????????????????? | | ????????????????????????????????????? | | ????????????????????????????????????? | | ????????????????????????????????????? | | ????????????????????????????????????? | | ????????????????????????????????????? | | ????????????????????????????????????? | | ????????????????????????????????????? | | ????????????????????????????????????? | | ?????????????????#??????????????????? | | ???????????????? #??????????????????? | | ??????????????? #??????????????????? | | ?????########## ##?????????????????? | | ???# #u #?????????????????? | | ???# """"" Y #?????????????????? | | ??????????" @# #?????????????????? | | ??????????" #?? #?????????????????? | | ??????????"" #????#?????????????????? | | ???????????"r#??????????????????????? | | ???# """"" #??????????????????????? | | ???# #??????????????????????? | | ?????#####+#########????????????????? | | ?????????# #??# #????????????????? | | ?????????# #??# #????????????????? | | ?????????# #??#= #????????????????? | | ???# ##### #### #????????????????? | | ???# %+ #????????????????? | | ????######### # #????????????????? | | ????????????# # #????????????????? | | ????????????# # #????????????????? | | ????????????# # #????????????????? | | ????????????# #+##########+#####????? | | ????????????# % ??? | | ????????????# ??? | | ????????????+ ??? | | ????????????### ###############?????? | | ??????????????# #???????????????????? | | ??????????????# #???????????????????? | | ??????????????# #???????????????????? | | ??????????????# #???????????????????? | +----------------------------------------------------+ Best States ------------- Heat Dissipation 28 Energy Generation 14 Energy Capacity 275 Matter Stores 300 Matter Capacity 300 Sight Range 18 Robot Scan Range 14 Terrain Scan Density 10 Armor Coverage 150 Evasion (%) 57 Targeting Accuracy 10 Item Schematics ----------------- Carbon-fiber Leg | -9/Materials | Scanalyzed Robot Schematics ------------------ None Fabricated ------------ Nothing Alien Tech Used ----------------- None Achievements -------------- None Challenges ------------ None Game ------ Seed PoweredSwordRouter Manual? 0 Play Time 01:13:21 Cumulative 15.0 hours Start 2024.04.06 @ 07:32:14 End 2024.04.06 @ 08:47:25 Sessions 1 Manual Loads 0 Difficulty Rogue Special Mode None Game No. 7 Rogue 7 Adventurer 0 Explorer 0 Win Type - Total 0 Types 0/0/0/0/0/0/0/0/0 Lore% 6 Gallery% 16 Achievement% 13 Wizard Run 0 Options --------- Layout 1 ASCII 1 Keyboard 0 Movement Mouse Keybinds 0 Fullscreen 2 Font 24/Tallcaps Map View 50x35 Zoom Use 0% Tactical HUD 1 Map Filters NONE Filters NONE Steam 1 RUN: 5c231ceb-725a-445b-afdb-efaf1dd28bbc